fUST/lending_fUST_20250117
["ID","MTS","AMOUNT","RATE_DAILY","PERIOD"]
[349219956,1737043231289,160.0,0.00023904,120]
[349219957,1737043290784,160.0,0.00024598,120]
[349219958,1737043318390,1000.0,0.0001506,2]
[349219959,1737043350866,160.0,0.0002344,120]
[349219960,1737043410759,160.0,0.00023781,120]
[349219961,1737043471313,160.0,0.00023374,120]
[349219964,1737043590751,160.0,0.00023366,120]
[349219968,1737043651100,160.0,0.00022803,120]
[349219970,1737043710733,160.0,0.00024779,120]
[349220036,1737043766075,163.450691,0.00013973,2]
[349220037,1737043771279,160.0,0.00022603,120]
[349220040,1737043824772,1000.0,0.0001506,2]
[349220043,1737043831571,160.0,0.00024002,120]
[349220104,1737043832264,-311.745251,0.00016459,2]
[349220106,1737043832274,-311.745251,0.00016625,2]
[349220108,1737043832283,-311.745251,0.00018199,2]
[349220109,1737043832293,-1313.317447,0.00018239,2]
[349220111,1737043832305,-2773.2649991,0.00018239,2]
[349220113,1737043832316,-236.3082075,0.00018696,2]
[349220114,1737043832326,-706.5297228,0.00018932,2]
[349220116,1737043832335,-415.194,0.00019,2]
[349220118,1737043832345,-300.0,0.00019177,2]
[349220120,1737043832355,-684.53,0.00019178,2]
[349220122,1737043832364,-569.76,0.00019178,2]
[349220124,1737043832374,-500.0,0.00019178,2]
[349220126,1737043832383,-500.0,0.00019178,2]
[349220128,1737043832392,-500.0,0.00019178,2]
[349220130,1737043832401,-500.0,0.00019178,2]
[349220132,1737043832411,-265.77,0.00019178,2]
[349220134,1737043832421,-500.0,0.00019178,2]
[349220137,1737043832430,-500.0,0.00019178,2]
[349220139,1737043832439,-1998.88,0.00019178,2]
[349220142,1737043832451,-158.49033799,0.00019178,2]
[349220145,1737043832463,-341.50966201,0.00019178,2]
[349220148,1737043832473,-500.0,0.00019178,2]
[349220150,1737043832483,-457.05603816,0.00019178,2]
[349220152,1737043832494,-64.31396184,0.00019178,2]
[349220154,1737043832504,-500.0,0.00019178,2]
[349220156,1737043832514,-500.0,0.00019178,2]
[349220158,1737043832523,-500.0,0.00019178,2]
[349220160,1737043832534,-27.53670199,0.00019178,2]
[349220162,1737043832546,-472.46329801,0.00019178,2]
[349220164,1737043832555,-500.0,0.00019178,2]
[349220167,1737043832565,-500.0,0.00019178,2]
[349220171,1737043832575,-500.0,0.00019178,2]
[349220174,1737043832584,-500.0,0.00019178,2]
[349220176,1737043832594,-500.0,0.00019178,2]
[349220178,1737043832604,-500.0,0.00019178,2]
[349220180,1737043832614,-563.89,0.00019178,2]
[349220182,1737043832624,-500.0,0.00019178,2]
[349220183,1737043832633,-551.97,0.00019178,2]
[349220184,1737043832643,-500.0,0.00019178,2]
[349220185,1737043832652,-164.468591,0.00019178,2]
[349220186,1737043832662,-838.09746168,0.00019178,2]
[349220187,1737043832672,-250.43452686,0.00019213,2]
[349220188,1737043832682,-500.0,0.00019312,3]
[349220189,1737043832696,-501.08781509,0.00019313,3]
[349220190,1737043832706,-500.0,0.00019313,3]
[349220191,1737043832716,-500.0,0.00019313,3]
[349220192,1737043832725,-500.0,0.00019313,3]
[349220193,1737043832735,-606.0606701,0.00019313,3]
[349220194,1737043832744,-500.0,0.00019313,2]
[349220195,1737043832754,-500.0,0.00019313,2]
[349220196,1737043832764,-500.0,0.00019313,3]
[349220197,1737043832774,-3705.31,0.00019313,3]
[349220198,1737043832785,-500.0,0.00019313,3]
[349220199,1737043832794,-500.0,0.00019313,3]
[349220200,1737043832804,-500.0,0.00019313,3]
[349220201,1737043832814,-500.0,0.00019313,3]
[349220202,1737043832823,-500.0,0.00019313,3]
[349220203,1737043832834,-500.0,0.00019313,3]
[349220204,1737043832844,-811.31,0.00019314,3]
[349220205,1737043832853,-296.03782889,0.00019314,3]
[349220206,1737043832864,-500.0,0.00019315,3]
[349220207,1737043832874,-684.53,0.00019315,3]
[349220208,1737043832884,-500.0,0.00019315,3]
[349220209,1737043832896,-500.0,0.00019315,3]
[349220210,1737043832906,-572.75,0.00019315,3]
[349220211,1737043832916,-500.0,0.00019315,3]
[349220212,1737043832927,-500.0,0.00019315,3]
[349220213,1737043832936,-1998.88,0.00019315,3]
[349220214,1737043832951,-500.0,0.00019315,3]
[349220215,1737043832961,-500.0,0.00019315,3]
[349220216,1737043832971,-403.59,0.00019315,3]
[349220217,1737043832980,-312.31,0.00019315,3]
[349220218,1737043832989,-500.0,0.00019315,3]
[349220219,1737043832999,-500.0,0.00019315,3]
[349220220,1737043833010,-500.0,0.00019315,3]
[349220221,1737043833019,-500.0,0.00019315,3]
[349220222,1737043833029,-500.0,0.00019315,3]
[349220223,1737043833039,-500.0,0.00019315,3]
[349220224,1737043833051,-298.882,0.00019432,2]
[349220225,1737043833062,-504.9402885,0.0001945,2]
[349220226,1737043833074,-500.0,0.0001945,2]
[349220227,1737043833085,-3705.31,0.0001945,3]
[349220228,1737043833097,-500.0,0.0001945,3]
[349220229,1737043833108,-500.0,0.0001945,3]
[349220230,1737043833119,-500.0,0.0001945,3]
[349220231,1737043833130,-500.0,0.0001945,3]
[349220232,1737043833141,-500.0,0.0001945,3]
[349220233,1737043833150,-500.0,0.0001945,3]
[349220234,1737043833161,-811.31,0.00019451,3]
[349220235,1737043833172,-500.0,0.00019452,3]
[349220236,1737043833182,-684.53,0.00019452,3]
[349220237,1737043833192,-500.0,0.00019452,3]
[349220238,1737043833204,-500.0,0.00019452,3]
[349220239,1737043833214,-500.0,0.00019452,3]
[349220240,1737043833226,-500.0,0.00019452,3]
[349220241,1737043833236,-1998.88,0.00019452,3]
[349220242,1737043833246,-500.0,0.00019452,3]
[349220243,1737043833256,-594.44,0.00019452,3]
[349220244,1737043833266,-500.0,0.00019452,3]
[349220245,1737043833276,-500.0,0.00019452,3]
[349220246,1737043833288,-500.0,0.00019452,3]
[349220247,1737043833298,-287.09473901,0.00019452,3]
[349220248,1737043833308,-586.94,0.00019452,3]
[349220249,1737043833318,-500.0,0.00019452,3]
[349220250,1737043833328,-738.35,0.000195,2]
[349220251,1737043833337,-500.0,0.00019587,2]
[349220252,1737043833347,-3705.31,0.00019587,3]
[349220253,1737043833357,-165.07903948,0.00019587,3]
[349220254,1737043833368,-184.76,0.00019587,3]
[349220255,1737043833379,-500.0,0.00019587,3]
[349220256,1737043833391,-500.0,0.00019587,3]
[349220257,1737043833402,-500.0,0.00019587,3]
[349220258,1737043833413,-811.31,0.00019588,3]
[349220259,1737043833425,-500.0,0.00019589,3]
[349220260,1737043833437,-684.53,0.00019589,3]
[349220261,1737043833452,-500.0,0.00019589,3]
[349220262,1737043833465,-500.0,0.00019589,3]
[349220263,1737043833478,-202.71,0.00019589,3]
[349220264,1737043833489,-500.0,0.00019589,3]
[349220265,1737043833500,-1998.88,0.00019589,3]
[349220266,1737043833511,-594.38614444,0.00019589,3]
[349220267,1737043833521,-559.4288,0.00019589,3]
[349220268,1737043833532,-166.05,0.00019589,3]
[349220269,1737043833544,-500.0,0.00019589,3]
[349220270,1737043833554,-500.0,0.00019589,3]
[349220271,1737043833567,-153.7491537,0.00019616,2]
[349220272,1737043833578,-215.0156227,0.00019616,2]
[349220273,1737043833588,-154.00414,0.00019616,2]
[349220274,1737043833599,-383.5910532,0.00019616,2]
[349220275,1737043833610,-154.00414,0.00019616,2]
[349220276,1737043833621,-215.0156227,0.00019616,2]
[349220277,1737043833633,-500.0,0.00019724,2]
[349220278,1737043833644,-3705.31,0.00019724,3]
[349220279,1737043833654,-500.0,0.00019724,3]
[349220280,1737043833665,-500.0,0.00019724,3]
[349220281,1737043833675,-500.0,0.00019724,3]
[349220282,1737043833686,-811.31,0.00019725,3]
[349220283,1737043833697,-530.8,0.00019726,3]
[349220284,1737043833707,-684.53,0.00019726,3]
[349220285,1737043833718,-500.0,0.00019726,3]
[349220286,1737043833728,-500.0,0.00019726,3]
[349220287,1737043833737,-500.0,0.00019726,3]
[349220288,1737043833748,-1998.88,0.00019726,3]
[349220289,1737043833759,-500.0,0.00019726,3]
[349220290,1737043833770,-462.2,0.00019726,3]
[349220291,1737043833781,-184.7591227,0.00019799,2]
[349220292,1737043833792,-250.43452681,0.00019839,2]
[349220293,1737043833803,-500.0,0.00019861,2]
[349220294,1737043833813,-3705.31,0.00019861,3]
[349220295,1737043833823,-500.0,0.00019861,3]
[349220296,1737043833834,-500.0,0.00019861,3]
[349220297,1737043833844,-234.01,0.00019861,3]
[349220298,1737043833854,-811.31,0.00019862,3]
[349220299,1737043833865,-684.53,0.00019863,3]
[349220300,1737043833875,-500.0,0.00019863,3]
[349220301,1737043833886,-500.0,0.00019863,3]
[349220302,1737043833895,-1998.88,0.00019863,3]
[349220303,1737043833904,-500.0,0.00019863,3]
[349220304,1737043833913,-9217.21720157,0.0001988,5]
[349220305,1737043833923,-703.0,0.000199,2]
[349220306,1737043833937,-4705.79142892,0.000199,2]
[349220307,1737043833952,-427.42697317,0.00019973,2]
[349220308,1737043833964,-500.0,0.00019973,2]
[349220309,1737043833975,-500.0,0.00019973,2]
[349220310,1737043833986,-500.0,0.00019973,2]
[349220311,1737043833997,-500.0,0.00019973,2]
[349220312,1737043834009,-500.0,0.00019973,2]
[349220313,1737043834019,-500.0,0.00019973,2]
[349220314,1737043834029,-319.67877548,0.00019973,2]
[349220315,1737043834039,-500.0,0.00019973,2]
[349220316,1737043834050,-7460.25720654,0.00019996,5]
[349220317,1737043834062,-51173.52790755,0.00019997,5]
[349220318,1737043834076,-500.0,0.00019997,2]
[349220319,1737043834089,-500.0,0.00019997,2]
[349220320,1737043834099,-640.47733778,0.00019997,2]
[349220321,1737043834108,-500.0,0.00019997,2]
[349220322,1737043834119,-500.0,0.00019997,2]
[349220323,1737043834129,-500.0,0.00019997,2]
[349220324,1737043834141,-500.0,0.00019997,2]
[349220325,1737043834151,-249.23047362,0.00019997,2]
[349220326,1737043834161,-365.88458236,0.00019997,2]
[349220327,1737043834171,-500.0,0.00019997,2]
[349220328,1737043834182,-500.0,0.00019997,2]
[349220329,1737043834193,-538.79434884,0.00019997,2]
[349220330,1737043834208,-423.84916383,0.00019997,2]
[349220331,1737043834220,-500.0,0.00019997,2]
[349220332,1737043834231,-500.0,0.00019997,2]
[349220333,1737043834242,-500.0,0.00019997,2]
[349220334,1737043834252,-500.0,0.00019997,2]
[349220335,1737043834263,-500.0,0.00019997,2]
[349220336,1737043834273,-392.24221408,0.00019997,2]
[349220337,1737043834285,-500.0,0.00019997,2]
[349220338,1737043834296,-500.0,0.00019997,2]
[349220339,1737043834307,-500.0,0.00019997,2]
[349220340,1737043834317,-500.0,0.00019997,2]
[349220341,1737043834329,-500.0,0.00019997,2]
[349220342,1737043834340,-500.0,0.00019997,2]
[349220343,1737043834350,-500.0,0.00019997,2]
[349220344,1737043834361,-500.0,0.00019997,2]
[349220345,1737043834371,-500.0,0.00019997,2]
[349220346,1737043834382,-500.0,0.00019997,2]
[349220347,1737043834391,-500.0,0.00019997,2]
[349220348,1737043834401,-500.0,0.00019997,2]
[349220349,1737043834410,-500.0,0.00019997,2]
[349220350,1737043834420,-500.0,0.00019997,2]
[349220351,1737043834430,-500.0,0.00019997,2]
[349220352,1737043834440,-500.0,0.00019997,2]
[349220353,1737043834454,-499.51032535,0.00019997,2]
[349220354,1737043834464,-500.0,0.00019997,2]
[349220355,1737043834475,-500.0,0.00019997,2]
[349220356,1737043834485,-500.0,0.00019997,2]
[349220357,1737043834495,-500.0,0.00019997,2]
[349220358,1737043834505,-500.0,0.00019997,2]
[349220359,1737043834515,-500.0,0.00019997,2]
[349220360,1737043834525,-500.0,0.00019997,2]
[349220361,1737043834535,-500.0,0.00019997,2]
[349220362,1737043834546,-500.0,0.00019997,2]
[349220363,1737043834555,-500.0,0.00019997,2]
[349220364,1737043834566,-500.0,0.00019997,2]
[349220365,1737043834575,-500.0,0.00019997,2]
[349220366,1737043834585,-500.0,0.00019997,2]
[349220367,1737043834594,-500.0,0.00019997,2]
[349220368,1737043834603,-500.0,0.00019997,2]
[349220369,1737043834613,-500.0,0.00019997,2]
[349220370,1737043834623,-500.0,0.00019997,2]
[349220371,1737043834633,-500.0,0.00019997,2]
[349220372,1737043834644,-500.0,0.00019997,2]
[349220373,1737043834655,-500.0,0.00019997,2]
[349220374,1737043834665,-500.0,0.00019997,2]
[349220375,1737043834675,-500.0,0.00019997,2]
[349220376,1737043834685,-500.0,0.00019997,2]
[349220377,1737043834696,-500.0,0.00019997,2]
[349220378,1737043834706,-500.0,0.00019997,2]
[349220379,1737043834716,-500.0,0.00019997,2]
[349220380,1737043834726,-400.0,0.00019997,2]
[349220381,1737043834735,-500.0,0.00019997,2]
[349220382,1737043834744,-500.0,0.00019997,2]
[349220383,1737043834754,-500.0,0.00019997,2]
[349220384,1737043834765,-500.0,0.00019997,2]
[349220385,1737043834775,-500.0,0.00019997,2]
[349220386,1737043834785,-500.0,0.00019997,2]
[349220387,1737043834795,-500.0,0.00019997,2]
[349220388,1737043834806,-500.0,0.00019997,2]
[349220389,1737043834816,-500.0,0.00019997,2]
[349220390,1737043834825,-500.0,0.00019997,2]
[349220391,1737043834834,-500.0,0.00019997,2]
[349220392,1737043834844,-500.0,0.00019997,2]
[349220393,1737043834853,-530.17992668,0.00019997,2]
[349220394,1737043834863,-500.0,0.00019997,2]
[349220395,1737043834874,-500.0,0.00019997,2]
[349220396,1737043834885,-500.0,0.00019997,2]
[349220397,1737043834895,-500.0,0.00019997,2]
[349220398,1737043834906,-500.0,0.00019997,2]
[349220399,1737043834917,-500.0,0.00019997,2]
[349220400,1737043835030,-500.0,0.00019997,2]
[349220401,1737043835041,-500.0,0.00019997,2]
[349220402,1737043835050,-500.0,0.00019997,2]
[349220403,1737043835059,-500.0,0.00019997,2]
[349220404,1737043835068,-500.0,0.00019997,2]
[349220405,1737043835076,-500.0,0.00019997,2]
[349220406,1737043835086,-500.0,0.00019997,2]
[349220407,1737043835094,-500.0,0.00019997,2]
[349220408,1737043835104,-500.0,0.00019997,2]
[349220409,1737043835115,-500.0,0.00019997,2]
[349220410,1737043835125,-500.0,0.00019997,2]
[349220411,1737043835134,-373.98717581,0.00019997,2]
[349220412,1737043835144,-500.0,0.00019997,2]
[349220413,1737043835154,-500.0,0.00019997,2]
[349220414,1737043835164,-500.0,0.00019997,2]
[349220415,1737043835175,-500.0,0.00019997,2]
[349220416,1737043835184,-500.0,0.00019997,2]
[349220417,1737043835195,-500.0,0.00019997,2]
[349220418,1737043835204,-500.0,0.00019997,2]
[349220419,1737043835213,-214.49479041,0.00019997,2]
[349220420,1737043835223,-500.0,0.00019997,2]
[349220421,1737043835233,-500.0,0.00019997,2]
[349220422,1737043835243,-500.0,0.00019997,2]
[349220423,1737043835253,-500.0,0.00019997,2]
[349220424,1737043835263,-500.0,0.00019997,2]
[349220425,1737043835273,-151.0,0.00019998,2]
[349220426,1737043835284,-146560.69075846,0.00019998,7]
[349220427,1737043835295,-151.0,0.00019998,2]
[349220428,1737043835305,-151.0,0.00019998,2]
[349220429,1737043835315,-151.0,0.00019998,2]
[349220430,1737043835326,-152.059088,0.00019998,2]
[349220431,1737043835336,-151.0,0.00019998,2]
[349220432,1737043835346,-444.570794,0.00019998,2]
[349220433,1737043835356,-444.570794,0.00019998,2]
[349220434,1737043835366,-151.0,0.00019998,2]
[349220435,1737043835375,-151.0,0.00019998,2]
[349220436,1737043835385,-151.0,0.00019998,2]
[349220437,1737043835394,-2967.790686,0.00019998,2]
[349220438,1737043835404,-193.397279,0.00019998,2]
[349220439,1737043835413,-2967.790686,0.00019998,2]
[349220440,1737043835423,-151.0,0.00019998,2]
[349220441,1737043835433,-151.0,0.00019998,2]
[349220442,1737043835443,-151.0,0.00019998,2]
[349220443,1737043835455,-151.0,0.00019998,2]
[349220444,1737043835466,-241.668256,0.00019998,2]
[349220445,1737043835477,-151.0,0.00019998,2]
[349220446,1737043835487,-151.0,0.00019998,2]
[349220447,1737043835497,-155.844406,0.00019998,2]
[349220448,1737043835507,-155.844406,0.00019998,2]
[349220449,1737043835518,-151.0,0.00019998,2]
[349220450,1737043835528,-229.526249,0.00019998,2]
[349220451,1737043835538,-151.0,0.00019998,2]
[349220452,1737043835548,-500.0,0.00019998,2]
[349220453,1737043835558,-151.0,0.00019998,2]
[349220454,1737043835568,-151.0,0.00019998,2]
[349220455,1737043835578,-382.666133,0.00019998,2]
[349220456,1737043835588,-382.666133,0.00019998,2]
[349220457,1737043835598,-3705.31,0.00019998,3]
[349220458,1737043835608,-153.210539,0.00019998,2]
[349220459,1737043835618,-500.0,0.00019998,3]
[349220460,1737043835628,-152.152907,0.00019998,2]
[349220461,1737043835638,-511.82591087,0.00019998,3]
[349220462,1737043835648,-292.533554,0.00019998,2]
[349220463,1737043835659,-835.998517,0.00019998,2]
[349220464,1737043835670,-835.998517,0.00019998,2]
[349220465,1737043835680,-1155.856973,0.00019998,2]
[349220466,1737043835690,-1155.856973,0.00019998,2]
[349220467,1737043835705,-151.0,0.00019998,2]
[349220468,1737043835714,-151.0,0.00019998,2]
[349220469,1737043835725,-151.0,0.00019998,2]
[349220470,1737043835734,-151.0,0.00019998,2]
[349220471,1737043835744,-151.0,0.00019998,2]
[349220472,1737043835753,-561.127488,0.00019998,2]
[349220473,1737043835763,-151.0,0.00019998,2]
[349220474,1737043835774,-561.127488,0.00019998,2]
[349220475,1737043835785,-476.145182,0.00019998,2]
[349220476,1737043835795,-476.145182,0.00019998,2]
[349220477,1737043835806,-151.0,0.00019998,2]
[349220478,1737043835816,-811.31,0.00019999,3]
[349220479,1737043835827,-204.21318584,0.00019999,2]
[349220480,1737043835837,-471.73521238,0.00019999,2]
[349220481,1737043835847,-211.43447738,0.00019999,2]
[349220482,1737043835859,-127786.30728635,0.0002,5]
[349220483,1737043835876,-455.8688184,0.0002,5]
[349220505,1737043838206,-311.745251,0.00016294,2]
[349220506,1737043838217,-597.91956973,0.0002,5]
[349220507,1737043838236,-2000.0736,0.0002,5]
[349220508,1737043838249,-676.66337925,0.0002,5]
[349220536,1737043840395,-2590.75243186,0.0002,5]
[349220537,1737043840408,-736.55332444,0.0002,5]
[349220538,1737043840731,-10726.65945566,0.0002,5]
[349220539,1737043840746,-20478.5017756,0.0002,5]
[349220540,1737043840759,-99624.19777804,0.0002,5]
[349220591,1737043843105,-311.745251,0.00016131,2]
[349220593,1737043843116,-500.0,0.00019178,2]
[349220595,1737043843126,-99458.21660832,0.0002,5]
[349220597,1737043843136,-5163.87,0.0002,2]
[349220599,1737043843147,-1387.51,0.0002,2]
[349220601,1737043843157,-5968.63,0.0002,2]
[349220603,1737043843167,-36963.57094482,0.0002,5]
[349220677,1737043891860,160.0,0.00023246,120]
[349220678,1737043950779,160.0,0.00022922,120]
[349220679,1737044010738,160.0,0.00023184,120]
[349220680,1737044066463,1000.0,0.00025,120]
[349220681,1737044070711,160.0,0.00023168,120]
[349220682,1737044131342,160.0,0.0002314,120]
[349220683,1737044190740,160.0,0.00024505,120]
[349220684,1737044250897,160.0,0.00023054,120]
[349220685,1737044310779,160.0,0.00024019,120]
[349220686,1737044370748,160.0,0.00023759,120]
[349220687,1737044431278,160.0,0.00023806,120]
[349220688,1737044490757,160.0,0.00023971,120]
[349220689,1737044550811,160.0,0.00024469,120]
[349220694,1737044610749,160.0,0.00023242,120]
[349220695,1737044670760,160.0,0.00023795,120]
[349220696,1737044730789,160.0,0.00024629,120]
[349220698,1737044790845,160.0,0.00023405,120]
[349220704,1737044851288,160.0,0.00023097,120]
[349220718,1737044911433,160.0,0.00023736,120]
[349220733,1737044971025,160.0,0.0002478,120]
[349220736,1737045030763,160.0,0.00024508,120]
[349220761,1737045032427,-613.00744606,0.00016753,2]
[349220762,1737045032439,-613.00744606,0.00016922,2]
[349220763,1737045032449,-2700.27806932,0.00018276,2]
[349220764,1737045032489,-336.52636846,0.00018276,2]
[349220765,1737045032536,-1158.88595302,0.00018276,2]
[349220766,1737045032546,-300.0,0.00018999,2]
[349220767,1737045032556,-1000.0,0.00019,7]
[349220768,1737045032566,-397.858,0.00019,2]
[349220769,1737045032576,-215.0156227,0.00019,2]
[349220770,1737045032586,-154.00414,0.00019,2]
[349220771,1737045032595,-154.00414,0.00019,2]
[349220772,1737045032605,-215.0156227,0.00019,2]
[349220773,1737045032615,-154.00414,0.00019,2]
[349220775,1737045032626,-215.0156227,0.00019,2]
[349220779,1737045032813,-655.74,0.00019178,2]
[349220780,1737045032823,-174.812539,0.00019178,2]
[349220781,1737045032833,-151.96,0.00019178,2]
[349220782,1737045032844,-425.9345632,0.000192,2]
[349220783,1737045032853,-304.4311409,0.000192,2]
[349220784,1737045032864,-297.22320484,0.00019213,2]
[349220785,1737045032874,-339.01,0.0001931,3]
[349220786,1737045032883,-165.2263017,0.00019311,3]
[349220787,1737045032893,-500.0,0.00019311,3]
[349220788,1737045032903,-500.0,0.00019311,3]
[349220789,1737045032913,-348.35603856,0.00019311,3]
[349220790,1737045032923,-500.0,0.00019311,3]
[349220791,1737045032933,-500.0,0.00019311,3]
[349220792,1737045032943,-623.75699285,0.00019311,3]
[349220793,1737045032956,-500.0,0.00019311,3]
[349220794,1737045032966,-500.0,0.00019311,2]
[349220795,1737045032976,-549.74597646,0.00019311,3]
[349220796,1737045032988,-70.96402354,0.00019311,3]
[349220797,1737045032998,-2851.96,0.00019311,3]
[349220798,1737045033008,-539.63,0.00019311,3]
[349220799,1737045033018,-493.53918802,0.00019311,3]
[349220800,1737045033028,-500.0,0.00019311,3]
[349220801,1737045033038,-500.0,0.00019311,3]
[349220802,1737045033049,-341.46866292,0.00019311,3]
[349220803,1737045033060,-566.75172669,0.00019311,3]
[349220804,1737045033070,-607.91,0.00019311,3]
[349220805,1737045033079,-500.0,0.00019312,3]
[349220806,1737045033089,-500.0,0.00019312,3]
[349220807,1737045033099,-500.0,0.00019312,3]
[349220808,1737045033109,-500.0,0.00019312,3]
[349220809,1737045033119,-500.0,0.00019312,3]
[349220810,1737045033129,-500.0,0.00019312,3]
[349220811,1737045033140,-500.0,0.00019312,3]
[349220812,1737045033150,-500.0,0.00019312,3]
[349220813,1737045033160,-500.0,0.00019312,3]
[349220814,1737045033171,-500.0,0.00019312,3]
[349220815,1737045033182,-500.0,0.00019312,3]
[349220816,1737045033192,-500.0,0.00019312,3]
[349220817,1737045033206,-500.0,0.00019312,3]
[349220818,1737045033215,-500.0,0.00019312,3]
[349220819,1737045033225,-1499.16,0.00019312,3]
[349220820,1737045033235,-500.0,0.00019312,3]
[349220821,1737045033246,-500.0,0.00019313,3]
[349220822,1737045033256,-295.2906301,0.00019313,3]
[349220823,1737045033267,-243.29817721,0.00019313,3]
[349220824,1737045033316,-256.70182279,0.00019313,3]
[349220825,1737045033326,-479.31817721,0.00019313,3]
[349220841,1737045038357,-1534.08182279,0.0001912,2]
[349220842,1737045038368,-20.68182279,0.00019313,3]
[349220843,1737045038378,-500.0,0.00019313,3]
[349220844,1737045038387,-513.4,0.00019313,3]
[349220845,1737045038397,-500.0,0.00019313,3]
[349220846,1737045038408,-655.74,0.00019315,3]
[349220847,1737045038418,-239.105,0.00019423,2]
[349220848,1737045038429,-500.0,0.00019448,3]
[349220849,1737045038439,-481.61775442,0.00019448,3]
[349220850,1737045038471,-18.38224558,0.00019448,3]
[349220851,1737045038480,-500.0,0.00019448,2]
[349220852,1737045038489,-2851.96,0.00019448,3]
[349220853,1737045038499,-369.65775442,0.00019448,3]
[349220890,1737045040537,-130.34224558,0.00019448,3]
[349220892,1737045040546,-500.0,0.00019448,3]
[349220894,1737045040555,-95.92703228,0.00019449,3]
[349220896,1737045040567,-404.07296772,0.00019449,3]
[349220898,1737045040576,-500.0,0.00019449,3]
[349220900,1737045040585,-1499.16,0.00019449,3]
[349220902,1737045040594,-513.4,0.0001945,3]
[349220904,1737045040603,-500.0,0.0001945,3]
[349220906,1737045040612,-655.74,0.00019452,3]
[349220908,1737045040622,-664.51,0.000195,2]
[349220910,1737045040631,-422.53,0.00019585,3]
[349220912,1737045040641,-500.0,0.00019585,2]
[349220915,1737045040651,-2851.96,0.00019585,3]
[349220917,1737045040661,-500.0,0.00019585,3]
[349220919,1737045040670,-500.0,0.00019586,3]
[349220921,1737045040679,-480.19,0.00019586,3]
[349220922,1737045040689,-1499.16,0.00019586,3]
[349220924,1737045040698,-513.4,0.00019587,3]
[349220927,1737045040710,-500.0,0.00019587,3]
[349220929,1737045040719,-655.74,0.00019589,3]
[349220930,1737045040728,-500.0,0.00019722,2]
[349220932,1737045040737,-2851.96,0.00019722,3]
[349220934,1737045040747,-500.0,0.00019722,3]
[349220936,1737045040756,-500.0,0.00019723,3]
[349220939,1737045040767,-1499.16,0.00019723,3]
[349220941,1737045040776,-513.4,0.00019724,3]
[349220943,1737045040786,-500.0,0.00019724,3]
[349220945,1737045040795,-655.74,0.00019726,3]
[349220947,1737045040808,-297.22320478,0.00019838,2]
[349220949,1737045040818,-500.0,0.00019859,2]
[349220951,1737045040827,-2851.96,0.00019859,3]
[349220952,1737045040836,-500.0,0.00019859,3]
[349220955,1737045040845,-500.0,0.0001986,3]
[349220956,1737045040854,-1499.16,0.0001986,3]
[349220958,1737045040864,-513.4,0.00019861,3]
[349220961,1737045040873,-500.0,0.00019861,3]
[349220963,1737045040883,-655.74,0.00019863,3]
[349220965,1737045040892,-4558.33900533,0.000199,2]